bitfinex/quotes_ETHUSD_20251031
["timestamp","ask_amount","ask_price","bid_price","bid_amount"]
[1761878241184,37.13947125,3838.2,3838.1,1e-08]
[1761878241372,27.63809392,3837.2,3837.1,0.01]
[1761878241619,34.58860609,3837.2,3837.1,0.01]
[1761878241774,35.12259847,3837.2,3837.1,0.01]
[1761878242080,40.49607547,3837.2,3837.1,0.01]
[1761878242281,2.60674625,3836.2,3835.8,0.1822]
[1761878242484,4.90253217,3836.2,3835.8,0.1822]
[1761878242676,10.65723742,3836.2,3836.1,0.467]
[1761878242871,10.65723742,3836.2,3836.1,0.01]
[1761878243076,10.65723742,3836.2,3836.1,0.467]
[1761878243272,2.146909,3836.2,3836.1,0.467]
[1761878243588,5.447909,3836.2,3836.1,0.467]
[1761878244151,5.447909,3836.2,3836.1,0.01]
[1761878244152,5.722607,3836.2,3836.1,0.01]
[1761878244379,1.805184,3836.8,3836.1,1.1119]
[1761878244580,1.39968,3836.6,3836.4,0.457]
[1761878244775,10.723639,3836.4,3836.1,0.01]
[1761878244983,1.39968,3836.2,3836.1,0.1733]
[1761878245190,1.39968,3836.5,3836.1,0.1733]
[1761878245362,9.06777,3836.4,3836.3,0.457]
[1761878245692,1.39968,3836.4,3836.1,0.6549]
[1761878245858,1.39968,3837.0,3836.3,0.457]
[1761878246193,1.39968,3837.0,3836.4,0.457]
[1761878246375,7.44145122,3837.0,3836.9,0.457]
[1761878246797,2.165626,3836.8,3836.4,0.4816]
[1761878247155,19.28424061,3836.8,3836.7,0.457]
[1761878247511,0.1296,3836.4,3836.1,0.1733]
[1761878247661,0.405504,3837.0,3836.1,0.1733]
[1761878247859,2.60661241,3836.4,3836.1,0.1733]
[1761878248370,0.405504,3837.0,3836.1,0.01]
[1761878248573,2.13,3836.4,3836.2,0.1633]
[1761878248804,3.822626,3836.4,3836.2,0.1633]
[1761878248965,7.8289204,3836.4,3836.3,0.457]
[1761878249684,14.2631704,3836.4,3836.3,0.457]
[1761878249893,11.019556,3836.4,3836.3,0.457]
[1761878250120,9.73503436,3836.4,3836.3,0.457]
[1761878250272,15.624559,3836.2,3836.1,0.01]
[1761878250472,23.59243725,3836.2,3836.1,0.01]
[1761878250779,24.04423725,3836.2,3836.1,0.01]
[1761878250989,23.59566725,3836.2,3836.1,0.01]
[1761878251169,14.05843725,3836.2,3836.1,0.01]
[1761878251371,15.77103254,3836.2,3836.1,0.01]
[1761878251606,25.18761854,3836.2,3836.1,0.01]
[1761878252101,14.61357554,3836.2,3836.1,0.01]
[1761878252303,8.26662625,3836.2,3836.1,0.467]
[1761878252482,11.86527025,3836.2,3836.1,0.467]
[1761878253102,12.31707025,3836.2,3836.1,0.01]
[1761878253298,13.76425941,3836.2,3836.1,0.01]
[1761878253623,19.72115841,3836.2,3836.1,0.01]
[1761878253789,15.76951241,3836.2,3836.1,0.01]
[1761878253994,14.11137241,3836.2,3836.1,0.01]
[1761878254325,14.56317241,3836.2,3836.1,0.01]
[1761878254620,21.55366641,3836.2,3836.1,0.01]
[1761878254915,21.03810541,3836.2,3836.1,0.011]
[1761878255616,23.08746141,3836.2,3836.1,0.011]
[1761878256518,6.77181941,3836.2,3836.1,0.011]
[1761878256818,22.71642241,3836.2,3836.1,0.011]
[1761878257597,22.71196241,3836.2,3836.1,0.011]
[1761878258008,22.45378541,3836.2,3836.1,0.011]
[1761878258718,24.11061441,3836.2,3836.1,0.011]
[1761878259801,26.51142941,3836.2,3836.1,0.011]
[1761878260004,4.783809,3836.2,3836.1,0.6313]
[1761878260452,7.39055525,3836.2,3836.1,0.011]
[1761878260751,24.06674225,3836.2,3836.1,0.011]
[1761878260917,24.52764225,3836.2,3836.1,0.011]
[1761878261647,4.91912625,3836.2,3836.1,0.011]
[1761878261949,29.53535139,3836.2,3836.1,0.011]
[1761878262537,30.47484777,3836.2,3836.1,0.011]
[1761878262842,30.00637159,3836.2,3836.1,0.011]
[1761878263437,34.91209925,3836.2,3836.1,0.011]
[1761878263633,34.64076892,3836.2,3836.1,0.011]
[1761878263837,30.95230805,3836.2,3836.1,0.011]
[1761878264013,15.41715705,3836.2,3836.1,0.468]
[1761878264217,15.01165305,3836.2,3836.1,0.468]
[1761878264520,11.83684505,3836.2,3836.1,0.468]
[1761878264720,15.95123005,3836.2,3836.1,0.468]
[1761878264916,12.42334505,3836.2,3836.1,0.468]
[1761878265351,7.51761739,3836.2,3836.1,0.468]
[1761878265550,7.51761739,3836.2,3836.1,0.011]
[1761878265755,15.32289139,3836.2,3836.1,0.011]
[1761878265956,15.06171339,3836.2,3836.1,0.011]
[1761878266862,5.21080239,3836.2,3836.1,0.011]
[1761878267160,13.75481839,3836.2,3836.1,0.011]
[1761878267369,13.40352039,3836.2,3836.1,0.011]
[1761878267720,14.26992439,3836.2,3836.1,0.011]
[1761878267994,19.69956739,3836.2,3836.1,0.011]
[1761878268194,19.00570739,3836.2,3836.1,0.011]
[1761878268364,19.46660739,3836.2,3836.1,0.011]
[1761878268695,3.01259005,3835.7,3835.6,0.34487546]
[1761878268881,25.90162871,3835.7,3835.6,0.34487546]
[1761878269255,17.71623405,3835.7,3835.6,0.34487546]
[1761878269462,17.47483405,3835.7,3835.6,0.34487546]
[1761878269808,17.47483405,3835.7,3835.6,1.27457546]
[1761878269809,3.58414,3835.7,3835.6,1.27457546]
[1761878269961,3.55698,3835.7,3835.6,1.27457546]
[1761878270562,1.39968,3835.7,3835.6,1.27457546]
[1761878270964,4.00676605,3835.7,3835.6,1.27457546]
[1761878271473,1.39968,3835.7,3835.6,1.27457546]
[1761878272071,4.00676605,3835.7,3835.6,1.27457546]
[1761878272796,1.39968,3835.7,3835.6,0.84147546]
[1761878273094,1.39968,3835.7,3835.6,1.31417546]
[1761878274083,1.39968,3835.7,3835.6,1.31517546]
[1761878275507,4.00676605,3835.7,3835.6,1.31517546]
[1761878275676,11.87458505,3835.7,3835.6,0.34587546]
[1761878276000,13.32274309,3835.7,3835.6,0.34587546]
[1761878276301,13.32274309,3835.7,3835.6,0.84247546]
[1761878276514,11.87458505,3835.7,3835.6,0.84247546]
[1761878276803,3.52978,3835.7,3835.6,0.84247546]
[1761878277205,6.13686605,3835.7,3835.6,0.84247546]
[1761878277418,6.13686605,3835.7,3835.6,1.31517546]
[1761878277782,3.52978,3835.7,3835.6,1.31517546]
[1761878277986,1.39968,3835.7,3835.6,1.31517546]
[1761878278580,3.531606,3835.7,3835.6,1.31517546]
[1761878278974,6.13869205,3835.7,3835.6,0.84247546]
[1761878280294,7.01325866,3835.7,3835.6,0.84247546]
[1761878280510,24.20529566,3835.7,3835.6,0.84247546]
[1761878280811,2.27424661,3835.7,3835.6,0.84247546]
[1761878280981,1.39968,3835.7,3835.6,1.31517546]
[1761878281612,5.037021,3835.7,3835.6,1.31517546]
[1761878281808,6.102021,3835.7,3835.6,1.31517546]
[1761878282011,8.70910705,3835.7,3835.6,0.84247546]
[1761878282316,2.60742594,3835.2,3835.1,0.01]
[1761878282513,23.16325294,3835.2,3835.1,0.01]
[1761878282809,23.98199832,3835.2,3835.1,0.01]
[1761878282978,26.59350986,3835.2,3835.1,0.01]
[1761878283316,24.79305586,3835.2,3835.1,0.01]
[1761878283619,26.02803548,3835.2,3835.1,0.01]
[1761878284881,11.98060048,3835.2,3835.1,0.5066]
[1761878285082,9.36908894,3835.2,3835.1,0.5066]
[1761878285616,12.59060594,3835.2,3835.1,0.5066]
[1761878285813,4.00710594,3835.2,3835.1,0.5066]
[1761878286176,6.24517694,3835.2,3835.1,0.5066]
[1761878286684,6.29742994,3835.2,3835.1,0.5066]
[1761878286883,4.00710594,3835.2,3835.1,1.1615]
[1761878287095,6.90178094,3835.2,3835.1,1.1615]
[1761878287417,6.90178094,3835.2,3835.1,0.6888]
[1761878287615,17.28533194,3835.2,3835.1,0.6888]
[1761878287910,6.23146194,3835.2,3835.1,0.5066]
[1761878288226,7.11754094,3835.2,3835.1,0.5066]
[1761878288714,12.17828594,3835.2,3835.1,0.5066]
[1761878289701,9.60754494,3835.2,3835.1,0.5066]
[1761878290096,11.72743375,3835.2,3835.1,0.01]
[1761878290420,12.54617913,3835.2,3835.1,0.01]
[1761878290617,19.84776913,3835.2,3835.1,0.01]
[1761878290817,15.29828813,3835.2,3835.1,0.01]
[1761878291112,14.69828813,3835.2,3835.1,0.01]
[1761878291414,7.33688594,3835.2,3835.1,0.6336]
[1761878291586,4.00710594,3835.2,3835.1,0.5066]
[1761878291786,6.30755094,3835.2,3835.1,0.5066]
[1761878291989,4.00710594,3835.2,3835.1,0.5066]
[1761878292284,4.00710594,3835.2,3835.1,0.6336]
[1761878292285,1.39968,3835.2,3835.1,0.6336]
[1761878292486,7.01566394,3835.2,3835.1,0.01]
[1761878292714,35.67757233,3835.2,3835.1,0.011]
[1761878292904,36.02031771,3835.2,3835.1,0.011]
[1761878293422,41.94445175,3835.2,3835.1,0.011]
[1761878293796,41.46845175,3835.2,3835.1,0.011]
[1761878295101,41.46845175,3835.2,3835.1,0.5076]
[1761878295102,8.56041233,3835.2,3835.1,0.5076]
[1761878295320,9.05331233,3835.2,3835.1,0.011]
[1761878295622,9.87205771,3835.2,3835.1,0.011]
[1761878295791,33.26153771,3835.2,3835.1,0.011]
[1761878296211,33.66704171,3835.2,3835.1,0.011]
[1761878296798,35.94982171,3835.2,3835.1,0.011]
[1761878296998,14.99640471,3835.2,3835.1,0.011]
[1761878297824,16.55745371,3835.2,3835.1,0.011]
[1761878298772,18.14833071,3835.2,3835.1,0.011]
[1761878298963,17.62581371,3835.2,3835.1,0.011]
[1761878299164,18.12071371,3835.2,3835.1,0.011]
[1761878299721,32.57437571,3835.2,3835.1,0.011]
[1761878300131,31.93616371,3835.2,3835.1,0.011]
[1761878300735,6.44472171,3835.2,3835.1,0.011]
[1761878301064,36.44472171,3835.2,3835.1,0.011]
[1761878301422,30.88678571,3835.2,3835.1,0.011]
[1761878301916,36.04591371,3835.2,3835.1,0.011]
[1761878302273,36.04591371,3835.2,3834.2,0.6]
[1761878302274,15.82219397,3834.3,3834.2,0.6]
[1761878302450,12.85273997,3834.3,3834.2,0.6]
[1761878302632,18.37137001,3834.3,3834.2,0.6]
[1761878302823,27.11192739,3834.3,3834.2,0.6]
[1761878303017,26.04692739,3834.3,3834.2,0.6]
[1761878303224,28.65843893,3834.3,3834.2,0.6]
[1761878303917,41.23994993,3834.3,3834.2,0.6]
[1761878304116,23.29912955,3834.3,3834.2,0.6]
[1761878304553,23.79192955,3834.3,3834.2,0.6]
[1761878304856,28.89478455,3834.3,3834.2,0.6]
[1761878305021,28.63373455,3834.3,3834.2,0.6]
[1761878305633,28.63373455,3834.3,3833.1,0.01]
[1761878305634,13.620278,3833.2,3833.1,0.01]
[1761878305830,4.712914,3833.2,3833.1,0.01]
[1761878306035,9.27447139,3833.2,3833.1,0.9748]
[1761878306437,9.27447139,3833.2,3833.1,0.01]
[1761878306654,9.27447139,3833.2,3833.1,0.476]
[1761878306841,4.00846639,3833.2,3833.1,0.476]
[1761878307049,12.40846839,3833.2,3833.1,0.476]
[1761878307244,10.86110439,3833.2,3833.1,0.476]
[1761878308041,11.96251039,3833.2,3833.1,0.476]
[1761878308467,11.96251039,3833.2,3833.1,0.01]
[1761878308468,12.46241039,3833.2,3833.1,0.01]
[1761878308655,14.4243047,3833.2,3833.1,0.01]
[1761878308963,29.38500408,3833.2,3833.1,0.01]
[1761878309170,25.46470408,3833.2,3833.1,0.01]
[1761878309964,36.50530408,3833.2,3833.1,0.01]
[1761878310344,36.79213441,3833.2,3833.1,0.01]
[1761878310673,15.08542608,3833.2,3833.1,0.01]
[1761878310833,11.3507547,3833.2,3833.1,0.01]
[1761878311032,22.9121827,3833.2,3833.1,0.01]
[1761878311367,23.25492808,3833.2,3833.1,0.01]
[1761878311564,23.25492808,3833.2,3833.1,0.011]
[1761878312070,37.30580608,3833.2,3833.1,0.011]
[1761878313080,38.09044904,3833.2,3833.1,0.011]
[1761878313285,37.74770366,3833.2,3833.1,1e-08]
[1761878313787,22.66860704,3833.2,3833.1,1e-08]
[1761878314159,15.3553467,3833.2,3833.1,1e-08]
[1761878314854,12.5921707,3833.2,3833.1,1e-08]
[1761878315052,23.2849867,3833.2,3833.1,1e-08]
[1761878315685,20.2592177,3833.2,3833.1,1e-08]
[1761878315965,17.1292687,3833.2,3833.1,1e-08]
[1761878316168,19.3126957,3833.2,3833.1,1e-08]
[1761878316810,5.47711731,3833.2,3833.1,0.46600001]
[1761878316982,3.920727,3833.2,3833.1,0.46600001]
[1761878317179,12.35398439,3833.2,3833.1,0.46600001]
[1761878317387,11.28898439,3833.2,3833.1,0.46600001]
[1761878317589,9.79157639,3833.2,3833.1,0.46600001]
[1761878317899,9.79157639,3833.2,3833.1,1e-08]
[1761878318193,15.10684239,3833.2,3833.1,1e-08]
[1761878318390,10.50272139,3833.2,3833.1,1e-08]
[1761878318603,8.62440804,3833.2,3833.1,1e-08]
[1761878318897,7.77161543,3833.2,3833.1,0.46600001]
[1761878319192,4.00846639,3833.2,3833.1,1e-08]
[1761878319394,10.94829539,3833.2,3833.1,0.46600001]
[1761878320211,13.19861539,3833.2,3833.1,0.46600001]
[1761878320360,10.589829,3833.2,3833.1,0.46600001]
[1761878320560,1.39968,3833.2,3833.1,0.96480001]
[1761878320805,5.168659,3833.2,3833.1,0.96480001]
[1761878320957,1.39968,3833.2,3833.1,0.96480001]
[1761878321360,3.65956,3833.2,3833.1,0.96480001]
[1761878321604,10.86019539,3833.2,3833.1,0.46600001]
[1761878321816,10.03919539,3833.2,3833.1,0.46600001]
[1761878322308,8.07578039,3833.2,3833.1,0.46600001]
[1761878322508,4.485289,3833.2,3833.1,0.96480001]
[1761878322680,7.09407539,3833.2,3833.1,0.96480001]
[1761878323002,6.33535539,3833.2,3833.1,0.96480001]
[1761878323163,9.818509,3833.2,3833.1,0.46600001]
[1761878323490,4.531727,3833.2,3833.1,0.96480001]
[1761878323715,1.39968,3833.2,3833.1,0.96480001]
[1761878323862,1.39968,3833.2,3833.1,0.46600001]
[1761878324061,1.39968,3833.2,3833.1,0.96480001]
[1761878327100,0.34274538,3834.0,3833.1,0.96480001]
[1761878327101,1.39968,3833.6,3833.1,0.96480001]
[1761878327264,1.39968,3833.6,3833.2,0.4988]
[1761878327598,1.39968,3833.6,3833.5,0.466]
[1761878328070,3.514541,3833.8,3833.5,0.9648]
[1761878328278,1.39968,3833.7,3833.6,0.466]
[1761878328485,3.55558,3833.7,3833.6,0.4988]
[1761878328687,2.60844614,3833.7,3833.6,0.9648]
[1761878328903,19.22749914,3833.7,3833.6,0.466]
[1761878329410,12.286642,3833.4,3833.1,1e-08]
[1761878329579,9.28657,3833.3,3833.1,1e-08]
[1761878329778,9.28657,3833.3,3833.1,0.47350001]
[1761878329979,9.28657,3833.3,3833.2,0.4631]
[1761878330181,6.22881,3833.3,3833.2,0.4631]
[1761878330499,4.368984,3833.3,3833.2,0.4631]
[1761878330698,1.39968,3833.3,3833.2,0.9366]
[1761878332906,1.39968,3833.3,3833.2,1.76249602]
[1761878334605,1.39968,3833.3,3833.2,0.4631]
[1761878334914,1.39968,3833.3,3833.2,0.9366]
[1761878335317,3.479367,3833.3,3833.2,0.9366]
[1761878335499,1.39968,3833.3,3833.2,0.9366]
[1761878338138,0.002,3833.7,3833.2,0.9366]
[1761878338331,2.071409,3833.7,3833.3,0.02608718]
[1761878338517,1.40168,3833.7,3833.6,0.4631]
[1761878338718,0.002,3833.7,3833.6,0.4631]
[1761878339038,0.002,3833.7,3833.6,0.9366]
[1761878339848,1.40168,3833.7,3833.6,0.9366]
[1761878340014,0.002,3833.7,3833.6,0.9366]
[1761878340213,0.002,3833.7,3833.6,1.29111912]
[1761878340653,0.002,3833.7,3833.6,3.89963331]
[1761878341353,0.002,3833.7,3833.6,1.29111912]
[1761878341552,0.002,3833.7,3833.6,0.9366]
[1761878342051,0.002,3833.7,3833.6,3.54511419]
[1761878342251,0.002,3833.7,3833.6,0.9366]
[1761878343836,2.726213,3833.6,3833.1,1e-08]
[1761878344023,0.1304,3833.4,3833.1,1e-08]
[1761878344223,0.1304,3833.4,3833.1,0.47350001]
[1761878344525,2.60858366,3833.5,3833.3,0.4631]
[1761878345055,2.60858366,3833.5,3833.1,1e-08]
[1761878345056,0.34274538,3833.4,3833.1,1e-08]
[1761878345259,2.60877492,3833.3,3833.1,1e-08]
[1761878345553,9.85330739,3833.2,3833.1,1e-08]
[1761878345755,1.39968,3833.4,3833.1,1e-08]
[1761878345954,8.361171,3833.6,3833.1,0.46310001]
[1761878346157,3.08408639,3833.2,3833.1,1e-08]
[1761878346326,13.58853039,3833.2,3833.1,1e-08]
[1761878346644,13.79385439,3833.2,3833.1,1e-08]
[1761878346843,8.33564139,3833.2,3833.1,1e-08]
[1761878348472,9.73532139,3833.2,3833.1,1e-08]
[1761878348674,11.19331871,3833.2,3833.1,1e-08]
[1761878349250,36.81936771,3833.2,3833.1,1e-08]
[1761878349474,41.66590962,3833.2,3833.1,1e-08]
[1761878349976,41.95273995,3833.2,3833.1,1e-08]
[1761878350463,23.15283609,3833.2,3833.1,1e-08]
[1761878350684,25.71975924,3833.2,3833.1,1e-08]
[1761878350976,26.06250462,3833.2,3833.1,1e-08]
[1761878351371,41.66590962,3833.2,3833.1,1e-08]
[1761878352181,3.01497114,3832.2,3832.1,0.01]
[1761878352476,39.75719016,3832.2,3832.1,0.01]
[1761878352778,40.22929016,3832.2,3832.1,0.01]
[1761878353275,10.43506025,3832.2,3832.1,0.01]
[1761878353489,1.89567711,3832.2,3832.1,0.01]
[1761878353776,3.876845,3832.2,3832.1,0.6001]
[1761878353963,6.48631214,3832.2,3832.1,0.4731]
[1761878354283,4.00914714,3832.2,3832.1,0.01]
[1761878354491,3.563258,3832.2,3832.1,0.4731]
[1761878354899,1.39968,3832.2,3832.1,0.4731]
[1761878355102,1.39968,3832.2,3832.1,0.6001]
[1761878355398,4.64278,3832.2,3832.1,0.6001]
[1761878355603,1.39968,3832.2,3832.1,0.6001]
[1761878355968,1.39968,3832.2,3832.1,1.0736]
[1761878356201,1.39968,3832.2,3832.1,1.09969535]
[1761878356497,0.600004,3833.0,3832.1,1.0736]
[1761878356498,1.39968,3832.8,3832.1,1.0736]
[1761878356705,0.405504,3833.0,3832.7,0.4589]
[1761878356706,7.70776195,3833.0,3832.7,0.4589]
[1761878356902,2.60886643,3833.1,3832.7,0.4589]
[1761878357200,3.647969,3832.9,3832.7,0.4589]
[1761878357366,1.39968,3833.0,3832.1,0.137]
[1761878357367,3.885897,3832.7,3832.1,0.137]
[1761878357568,1.39968,3832.9,3832.1,0.5909]
[1761878357888,0.1304,3832.2,3832.1,0.5909]
[1761878358063,0.1304,3832.2,3832.1,0.137]
[1761878358264,0.1304,3832.2,3832.1,3.74106329]
[1761878358666,0.1304,3832.2,3832.1,4.19496329]
[1761878358867,0.1304,3832.2,3832.1,1.58542805]
[1761878359372,0.1304,3832.2,3832.1,1.0498]
[1761878359867,9.110679,3832.2,3832.1,0.01]
[1761878360070,8.289356,3832.2,3832.1,0.01]
[1761878360301,8.289356,3832.2,3832.1,0.4981]
[1761878361712,8.289356,3832.2,3832.1,0.01]
[1761878361713,8.781156,3832.2,3832.1,0.01]
[1761878362010,12.62334114,3832.2,3832.1,0.01]
[1761878362386,11.48264914,3832.2,3832.1,0.01]
[1761878362718,5.117582,3832.2,3832.1,0.4981]
[1761878362888,5.136805,3832.2,3832.1,0.4981]
[1761878363717,1.53008,3832.2,3832.1,0.6251]
[1761878363919,1.53008,3832.2,3832.1,1.1144]
[1761878365027,32.84132049,3832.2,3832.1,0.01]
[1761878365333,26.50012452,3832.2,3832.1,0.01]
[1761878365987,33.00647152,3832.2,3832.1,0.01]
[1761878366208,32.64736752,3832.2,3832.1,0.01]
[1761878367216,35.72899652,3832.2,3832.1,0.011]
[1761878367521,29.96592506,3832.2,3832.1,0.011]
[1761878368015,27.13573006,3832.2,3832.1,0.011]
[1761878369018,8.34050806,3832.2,3832.1,0.011]
[1761878369226,30.42023606,3832.2,3832.1,0.011]
[1761878369845,30.72789972,3832.2,3832.1,0.011]
[1761878370331,38.64817172,3832.2,3832.1,0.011]
[1761878371117,8.64817172,3832.2,3832.1,0.011]
[1761878371310,38.77850303,3832.2,3832.1,0.011]
[1761878373003,38.77850303,3832.2,3831.1,0.01]
[1761878373004,33.01565225,3831.2,3831.1,0.01]
[1761878373203,35.08647763,3831.2,3831.1,0.01]
[1761878373436,35.56627763,3831.2,3831.1,0.01]
[1761878373817,31.89901163,3831.2,3831.1,0.01]
[1761878374022,9.15080625,3831.2,3831.1,0.01]
[1761878374218,12.56620925,3831.2,3831.1,0.01]
[1761878374423,12.00420925,3831.2,3831.1,0.01]
[1761878375021,3.826207,3831.2,3831.1,0.4981]
[1761878375224,7.85701325,3831.2,3831.1,0.4981]
[1761878375832,7.21131025,3831.2,3831.1,0.4981]
[1761878376034,3.536162,3831.2,3831.1,0.4981]
[1761878376222,5.301779,3831.2,3831.1,0.4981]
[1761878376400,7.91192725,3831.2,3831.1,0.4981]
[1761878376602,8.40372725,3831.2,3831.1,0.01]
[1761878376839,9.70601875,3831.2,3831.1,0.01]
[1761878377375,22.84514275,3831.2,3831.1,0.01]
[1761878377658,17.87367175,3831.2,3831.1,0.01]
[1761878377816,12.51542937,3831.2,3831.1,0.01]
[1761878378011,12.51542937,3831.2,3831.1,0.4981]
[1761878378211,14.17842937,3831.2,3831.1,0.4981]
[1761878378416,10.97028112,3831.2,3831.1,0.4981]
[1761878378623,8.04402512,3831.2,3831.1,0.4981]
[1761878378828,10.17442725,3831.2,3831.1,0.4981]
[1761878379330,13.59153566,3831.2,3831.1,0.4981]
[1761878380059,13.59153566,3831.2,3831.1,0.6251]
[1761878380060,9.08472425,3831.2,3831.1,0.6251]
[1761878380222,4.00982825,3831.2,3831.1,0.6251]
[1761878380424,10.10384925,3831.2,3831.1,0.6251]
[1761878380618,6.428701,3831.2,3831.1,1.1144]
[1761878381123,6.428701,3831.2,3831.1,0.01]
[1761878381124,9.03884925,3831.2,3831.1,0.01]
[1761878381328,7.649635,3831.2,3831.1,0.6251]
[1761878381652,10.25978325,3831.2,3831.1,0.4981]
[1761878382020,10.75158325,3831.2,3831.1,0.01]
[1761878382219,12.99190974,3831.2,3831.1,0.01]
[1761878382418,20.85821374,3831.2,3831.1,0.01]
[1761878382918,20.37841374,3831.2,3831.1,0.01]
[1761878383341,22.78350374,3831.2,3831.1,0.01]
[1761878383545,23.26330374,3831.2,3831.1,0.01]
[1761878384216,23.26330374,3831.2,3831.1,0.4981]
[1761878384217,10.698472,3831.2,3831.1,0.4981]
[1761878384416,12.99864725,3831.2,3831.1,0.4981]
[1761878384726,1.39968,3831.2,3831.1,0.4981]
[1761878384921,11.33082725,3831.2,3831.1,0.4981]
[1761878385121,8.720679,3831.2,3831.1,0.4981]
[1761878385378,1.39968,3831.2,3831.1,0.6261]
[1761878385659,1.39968,3831.2,3831.1,1.1154]
[1761878387421,0.40942928,3832.2,3831.1,1.1154]
[1761878387642,2.60981701,3831.7,3831.3,0.4881]
[1761878387819,1.39968,3831.6,3831.3,0.4881]
[1761878388018,2.60974459,3831.8,3831.4,0.4893]
[1761878388222,8.74600759,3831.8,3831.7,0.4881]
[1761878388456,6.36127759,3831.8,3831.7,0.4881]
[1761878388762,1.39968,3831.8,3831.7,0.4881]
[1761878389455,1.39968,3832.3,3831.7,0.9774]
[1761878389659,1.39968,3832.1,3831.7,0.4893]
[1761878389850,1.39968,3832.1,3831.5,0.02609943]
[1761878390021,2.60941503,3832.3,3832.0,0.4841]
[1761878390222,7.95646514,3832.2,3832.1,0.4841]
[1761878390446,0.1304,3831.5,3831.2,2.61013866]
[1761878390832,0.1304,3831.5,3831.4,0.4841]
[1761878391344,0.1304,3831.5,3831.4,0.9503]
[1761878391546,0.1304,3831.5,3831.4,1.60725609]
[1761878391758,0.1304,3831.5,3831.4,4.21726809]
[1761878392056,0.1304,3831.5,3831.4,1.58115597]
[1761878392263,0.1304,3831.5,3831.4,0.9503]
[1761878395140,0.1304,3831.5,3831.4,0.4841]
[1761878395347,0.1304,3831.5,3831.4,0.9503]
[1761878396042,0.1304,3831.5,3831.4,0.4841]
[1761878396636,5.766647,3831.5,3831.4,0.4841]
[1761878397933,2.502765,3831.5,3831.4,0.4841]
[1761878399786,0.1304,3831.5,3831.4,0.4841]
[1761878400283,2.60791902,3834.5,3831.4,0.9503]
[1761878400284,2.79872599,3832.9,3831.4,0.9503]
[1761878400580,1.39968,3832.1,3832.0,0.4841]
[1761878400745,1.39968,3832.1,3831.5,0.02609943]
[1761878400746,6.762524,3832.0,3831.5,0.49229943]
[1761878400953,9.37213985,3832.0,3831.5,0.4662]
[1761878401154,3.049223,3831.5,3831.1,0.138]
[1761878401468,2.61007789,3831.4,3831.1,0.138]
[1761878401672,4.228458,3831.3,3831.1,0.138]
[1761878401981,5.44103,3831.2,3831.1,0.138]
[1761878402179,3.08144825,3831.2,3831.1,0.011]
[1761878402386,18.89790763,3831.2,3831.1,0.011]
[1761878403153,35.31117363,3831.2,3831.1,0.011]
[1761878403475,35.61105117,3831.2,3831.1,0.011]
[1761878404007,36.01655517,3831.2,3831.1,0.011]
[1761878404206,38.32818917,3831.2,3831.1,0.011]
[1761878405176,26.58754479,3831.2,3831.1,0.011]
[1761878405387,32.12036462,3831.2,3831.1,0.011]
[1761878406151,31.82348462,3831.2,3831.1,0.011]
[1761878406349,30.08386362,3831.2,3831.1,0.011]
[1761878406574,9.13437779,3831.2,3831.1,0.011]
[1761878406748,6.52286625,3831.2,3831.1,0.011]
[1761878406952,7.48146625,3831.2,3831.1,0.011]
[1761878407181,0.600504,3831.9,3831.1,1.0883]
[1761878407182,15.39359783,3831.8,3831.1,1.0883]
[1761878407377,1.39968,3831.4,3831.3,0.4841]
[1761878407581,11.141064,3831.4,3831.3,0.4841]
[1761878407809,5.201744,3831.4,3831.3,0.4841]
[1761878408187,5.201744,3831.4,3831.3,0.9503]
[1761878408382,13.011611,3831.4,3831.3,0.4841]
[1761878408630,10.401599,3831.4,3831.3,0.4841]
[1761878408928,7.278574,3831.4,3831.3,0.4841]
[1761878409234,1.39968,3831.6,3831.3,0.4841]
[1761878409384,1.80900988,3831.7,3831.5,0.4841]
[1761878409582,7.15801388,3831.7,3831.6,0.4841]
[1761878410410,8.13302188,3831.7,3831.6,0.9503]
[1761878410593,6.358462,3831.7,3831.6,0.9503]
[1761878410915,0.002,3832.1,3831.6,0.9503]
[1761878411119,0.002,3832.1,3831.1,0.138]
[1761878411120,0.1304,3831.8,3831.7,0.4662]
[1761878411286,0.1304,3831.8,3831.7,0.9503]
[1761878411819,0.002,3832.1,3831.7,0.9503]
[1761878412121,0.1324,3832.1,3832.0,0.4841]
[1761878414107,13.719099,3832.1,3832.0,0.4841]
[1761878414416,0.1324,3832.1,3832.0,0.4841]
[1761878414915,0.1324,3832.1,3832.0,0.9503]
[1761878416744,0.1324,3832.1,3832.0,0.97639603]
[1761878417189,0.1324,3832.1,3832.0,3.58599937]
[1761878417395,0.002,3832.1,3832.0,3.91851598]
[1761878417900,0.002,3832.1,3832.0,3.94461201]
[1761878418857,0.002,3832.1,3832.0,1.30891264]
[1761878419021,0.002,3832.1,3832.0,3.55990334]
[1761878421743,0.002,3832.1,3832.0,0.9503]
[1761878422241,0.002,3832.1,3832.0,3.55990334]
[1761878422544,0.002,3832.1,3832.0,0.9503]
[1761878422743,0.002,3832.1,3832.0,3.55990334]
[1761878422916,0.002,3832.1,3832.0,0.9503]
[1761878423444,0.002,3832.1,3832.0,0.4841]
[1761878423744,0.002,3832.1,3830.0,2.77425339]
[1761878423745,0.4766,3832.1,3831.6,2.60987386]
[1761878424112,0.002,3832.1,3831.6,2.60987386]
[1761878424435,0.002,3832.1,3831.7,0.472]
[1761878424637,0.002,3832.1,3832.0,0.4513]
[1761878426251,0.002,3832.1,3832.0,1.30269833]
[1761878427157,0.002,3832.1,3832.0,0.94939603]
[1761878427336,0.002,3832.1,3832.0,0.9233]
[1761878427540,0.002,3832.1,3832.0,0.4513]
[1761878427744,0.4766,3832.1,3831.7,2.60979548]